[Event "AUT-ch 2018"]
[Site "Vienna"]
[Date "2018.07.29"]
[Round "9"]
[White "Miazhynski, Yuri"]
[Black "Riemelmoser, Stefan"]
[Result "1-0"]
[ECO "A13"]
[WhiteElo "2147"]
[BlackElo "2147"]
[Annotator "NA"]
[PlyCount "83"]
[EventDate "2018.07.22"]
[EventType "swiss"]
[EventCountry "AUT"]
[SourceTitle "playchess.com"]
[Source "ChessBase"]
[SourceQuality "1"]
[TimeControl "40/5400+30:1800+30"]

1. Nf3 {[%emt 0:00:00]} e6 {[%emt 0:00:20]} 2. c4 {[%emt 0:00:08]} d5 {[%emt 0:00:10]} 3. b3 {[%emt 0:00:15]} Nf6 {[%emt 0:00:16]} 4. Bb2 {[%emt 0:00:28]} Be7 {[%emt 0:00:53]} 5. g3 {[%emt 0:00:49]} O-O {[%emt 0:00:22]} 6. Bg2 {[%emt 0:00:04]} c5 {[%emt 0:00:31]} 7. O-O {[%emt 0:00:23]} Nc6 {[%emt 0:02:18]} 8. cxd5 {[%emt 0:11:46]} Nxd5 {[%emt 0:00:44]} 9. d4 {[%emt 0:00:11]} cxd4 {[%emt 0:04:33]} 10. Nxd4 {[%emt 0:00:32]} Bf6 {[%emt 0:05:14]} 11. Nxc6 {[%emt 0:03:39]} bxc6 {[%emt 0:00:12]} 12. Qc1 {[%emt 0:01:31]} Ba6 {[%emt 0:03:35]} 13. Re1 {[%emt 0:01:33]} Rc8 {[%emt 0:03:12]} 14. Nd2 {[%emt 0:05:38]} c5 {[%emt 0:06:42]} 15. Nc4 {[%emt 0:17:50]} Nb6 {[%emt 0:27:19]} 16. Bxf6 {[%emt 0:10:32]} Qxf6 {[%emt 0:00:03]} 17. Nd6 {[%emt 0:00:21]} Rc7 {[%emt 0:03:29]} 18. Qa3 {[%emt 0:02:17]} Bxe2 {[%emt 0:04:36]} 19. Rac1 {[%emt 0:01:04]} Bf3 {[%emt 0:03:58]} 20. Rxc5 {[%emt 0:03:56]} Rxc5 {[%emt 0:02:15]} 21. Qxc5 {[%emt 0:00:02]} Bxg2 {[%emt 0:08:09]} 22. Kxg2 {[%emt 0:00:03]} Qb2 {[%emt 0:03:39]} 23. Qa5 {[%emt 0:01:44]} h5 {[%emt 0:06:27]} 24. Qxh5 {[%emt 0:16:58]} Qxa2 {[%emt 0:01:33]} 25. Qf3 {[%emt 0:01:26]} Nd5 {[%emt 0:01:21]} 26. Re4 {[%emt 0:03:40]} Nf6 {[%emt 0:05:15]} 27. Ra4 {[%emt 0:07:14]} Qd2 {[%emt 0:00:02]} 28. Ne4 {[%emt 0:00:41]} Nxe4 {[%emt 0:00:17]} 29. Qxe4 {[%emt 0:00:02]} a5 {[%emt 0:01:16]} 30. Qe5 {[%emt 0:04:32]} Qd5+ {[%emt 0:03:42]} 31. Qxd5 {[%emt 0:00:36]} exd5 {[%emt 0:00:03]} 32. Rxa5 {[%emt 0:00:26]} Rb8 {[%emt 0:00:12]} 33. Ra3 {[%emt 0:00:21]} g6 {[%emt 0:01:04]} 34. Kf3 {[%emt 0:00:49]} Rb4 {[%emt 0:00:16]} 35. Ke3 {[%emt 0:00:43]} Kg7 {[%emt 0:01:07]} 36. Kd3 {[%emt 0:00:12]} d4 {[%emt 0:02:29]} 37. Kc2 {[%emt 0:00:19]} Rb6 {[%emt 0:00:48]} 38. Ra4 {[%emt 0:03:38]} Rd6 {[%emt 0:00:35]} 39. Kd3 {[%emt 0:00:20]} Rb6 {[%emt 0:00:15]} 40. b4 {[%emt 0:00:10]} Rf6 {[%emt 0:30:42]} 41. Ra2 {[%emt 0:31:46]} Rd6 {[%emt 0:00:00]} 42. Rb2 {[%emt 0:00:00]} 1-0

[Event "AUT-ch 2018"]
[Site "Vienna"]
[Date "2018.07.29"]
[Round "9"]
[White "Hapala, Elisabeth"]
[Black "Goessler, Markus"]
[Result "1-0"]
[ECO "C95"]
[WhiteElo "2131"]
[BlackElo "2190"]
[Annotator "NA"]
[PlyCount "107"]
[EventDate "2018.07.22"]
[EventType "swiss"]
[EventCountry "AUT"]
[SourceTitle "playchess.com"]
[Source "ChessBase"]
[SourceQuality "1"]
[TimeControl "40/5400+30:1800+30"]

1. e4 {[%emt 0:00:00]} e5 {[%emt 0:00:05]} 2. Nf3 {[%emt 0:00:00]} Nc6 {[%emt 0:00:02]} 3. Bb5 {[%emt 0:00:00]} a6 {[%emt 0:00:06]} 4. Ba4 {[%emt 0:00:00]} Nf6 {[%emt 0:00:05]} 5. O-O {[%emt 0:00:00]} Be7 {[%emt 0:00:13]} 6. Re1 {[%emt 0:00:00]} b5 {[%emt 0:00:09]} 7. Bb3 {[%emt 0:00:00]} d6 {[%emt 0:00:07]} 8. c3 {[%emt 0:00:01]} O-O {[%emt 0:00:19]} 9. h3 {[%emt 0:00:38]} Nb8 {[%emt 0:00:29]} 10. d4 {[%emt 0:00:21]} Nbd7 {[%emt 0:00:07]} 11. Nbd2 {[%emt 0:00:14]} Bb7 {[%emt 0:00:12]} 12. Bc2 {[%emt 0:00:12]} Re8 {[%emt 0:00:16]} 13. Nf1 {[%emt 0:05:47]} Bf8 {[%emt 0:00:10]} 14. Ng3 {[%emt 0:00:04]} g6 {[%emt 0:00:16]} 15. a4 {[%emt 0:05:53]} Nb6 {[%emt 0:00:27]} 16. a5 {[%emt 0:11:43]} Nbd7 {[%emt 0:00:09]} 17. Bg5 {[%emt 0:03:49]} h6 {[%emt 0:03:07]} 18. Bd2 {[%emt 0:00:39]} c5 {[%emt 0:45:26]} 19. d5 {[%emt 0:00:46]} c4 {[%emt 0:00:09]} 20. Qc1 {[%emt 0:01:39]} Kh7 {[%emt 0:03:18]} 21. Nh2 {[%emt 0:01:07]} Nc5 {[%emt 0:03:55]} 22. Rf1 {[%emt 0:03:26]} Bg7 {[%emt 0:10:15]} 23. f4 {[%emt 0:05:24]} exf4 {[%emt 0:15:07]} 24. Rxf4 {[%emt 0:00:12]} Qe7 {[%emt 0:00:31]} 25. Qf1 {[%emt 0:12:53]} Rf8 {[%emt 0:02:51]} 26. Re1 {[%emt 0:15:17]} Ncd7 {[%emt 0:01:06]} 27. Qf2 {[%emt 0:10:37]} Ne5 {[%emt 0:00:47]} 28. Rf1 {[%emt 0:00:44]} Nfd7 {[%emt 0:00:33]} 29. Nf3 {[%emt 0:01:11]} Nxf3+ {[%emt 0:02:06]} 30. Qxf3 {[%emt 0:00:27]} Ne5 {[%emt 0:00:12]} 31. Qe3 {[%emt 0:00:33]} Bc8 {[%emt 0:02:41]} 32. Ne2 {[%emt 0:03:11]} Bd7 {[%emt 0:02:47]} 33. Nd4 {[%emt 0:00:30]} Rae8 {[%emt 0:03:47]} 34. R4f2 {[%emt 0:06:40]} Qd8 {[%emt 0:01:33]} 35. Nf3 {[%emt 0:01:25]} Kg8 {[%emt 0:02:57]} 36. Nxe5 {[%emt 0:02:13]} Rxe5 {[%emt 0:00:07]} 37. Qb6 {[%emt 0:01:01]} Qxb6 {[%emt 0:01:31]} 38. axb6 {[%emt 0:00:02]} g5 {[%emt 0:00:10]} 39. h4 {[%emt 0:03:28]} Bc8 {[%emt 0:00:47]} 40. Be3 {[%emt 0:02:14]} Bb7 {[%emt 0:30:52]} 41. hxg5 {[%emt 0:11:17]} hxg5 {[%emt 0:00:00]} 42. Bd4 {[%emt 0:02:35]} Bc8 {[%emt 0:00:00]} 43. Rf6 {[%emt 0:10:08]} Bxf6 {[%emt 0:00:00]} 44. Rxf6 {[%emt 0:00:08]} Rd8 {[%emt 0:00:00]} 45. Bxe5 {[%emt 0:04:05]} dxe5 {[%emt 0:00:00]} 46. Rc6 {[%emt 0:00:30]} Bb7 {[%emt 0:02:10]} 47. Rc7 {[%emt 0:00:26]} Rb8 {[%emt 0:00:09]} 48. Bd1 {[%emt 0:05:27]} f5 {[%emt 0:01:20]} 49. d6 {[%emt 0:00:47]} Kf8 {[%emt 0:00:51]} 50. exf5 {[%emt 0:01:01]} Ke8 {[%emt 0:00:35]} 51. Bh5+ {[%emt 0:00:47]} Kf8 {[%emt 0:00:33]} 52. f6 {[%emt 0:00:30]} Bd5 {[%emt 0:00:24]} 53. d7 {[%emt 0:00:44]} Be6 {[%emt 0:00:13]} 54. b7 {[%emt 0:00:22]} 1-0

[Event "AUT-ch 2018"]
[Site "Vienna"]
[Date "2018.07.29"]
[Round "9"]
[White "Gratze, Michael"]
[Black "Froewis, Annika"]
[Result "1/2-1/2"]
[ECO "C41"]
[WhiteElo "2128"]
[BlackElo "2128"]
[Annotator "NA"]
[PlyCount "63"]
[EventDate "2018.07.22"]
[EventType "swiss"]
[EventCountry "AUT"]
[SourceTitle "playchess.com"]
[Source "ChessBase"]
[SourceQuality "1"]
[TimeControl "40/5400+30:1800+30"]

1. e4 {[%emt 0:00:00]} e5 {[%emt 0:00:04]} 2. Nf3 {[%emt 0:00:00]} d6 {[%emt 0:00:04]} 3. d4 {[%emt 0:00:00]} exd4 {[%emt 0:00:12]} 4. Nxd4 {[%emt 0:00:00]} Nf6 {[%emt 0:00:06]} 5. Nc3 {[%emt 0:00:00]} Be7 {[%emt 0:00:13]} 6. g3 {[%emt 0:00:05]} O-O {[%emt 0:00:09]} 7. Bg2 {[%emt 0:00:17]} Re8 {[%emt 0:00:25]} 8. O-O {[%emt 0:04:36]} Bf8 {[%emt 0:00:54]} 9. Bg5 {[%emt 0:01:56]} c6 {[%emt 0:01:27]} 10. Qf3 {[%emt 0:02:32]} Nbd7 {[%emt 0:01:58]} 11. Nf5 {[%emt 0:02:36]} h6 {[%emt 0:03:17]} 12. Bf4 {[%emt 0:03:44]} Nc5 {[%emt 0:10:37]} 13. Rfe1 {[%emt 0:08:05]} d5 {[%emt 0:22:33]} 14. Rad1 {[%emt 0:08:51]} Bd7 {[%emt 0:12:29]} 15. g4 {[%emt 0:13:49]} Ncxe4 {[%emt 0:02:48]} 16. Nxe4 {[%emt 0:00:57]} Nxe4 {[%emt 0:05:04]} 17. Qb3 {[%emt 0:06:29]} Nc5 {[%emt 0:09:42]} 18. Qg3 {[%emt 0:01:38]} Qa5 {[%emt 0:03:34]} 19. Be5 {[%emt 0:02:01]} g6 {[%emt 0:07:08]} 20. Bc3 {[%emt 0:02:51]} Rxe1+ {[%emt 0:01:44]} 21. Rxe1 {[%emt 0:00:01]} Qd8 {[%emt 0:00:09]} 22. Qe5 {[%emt 0:07:59]} f6 {[%emt 0:02:19]} 23. Ne7+ {[%emt 0:03:11]} Bxe7 {[%emt 0:00:37]} 24. Qxe7 {[%emt 0:00:04]} Qxe7 {[%emt 0:00:43]} 25. Rxe7 {[%emt 0:00:05]} Re8 {[%emt 0:01:51]} 26. Rxe8+ {[%emt 0:00:30]} Bxe8 {[%emt 0:00:02]} 27. Bxf6 {[%emt 0:00:10]} Ne6 {[%emt 0:02:37]} 28. Be5 {[%emt 0:01:11]} Kf7 {[%emt 0:00:55]} 29. f4 {[%emt 0:00:25]} Nf8 {[%emt 0:02:10]} 30. b3 {[%emt 0:01:01]} Nd7 {[%emt 0:00:57]} 31. Bd4 {[%emt 0:00:15]} a6 {[%emt 0:00:39]} 32. Kf2 {[%emt 0:01:09]} 1/2-1/2

[Event "AUT-ch 2018"]
[Site "Vienna"]
[Date "2018.07.29"]
[Round "9"]
[White "Toelly, Michael"]
[Black "Hatzl, Johannes"]
[Result "1-0"]
[ECO "C67"]
[WhiteElo "2127"]
[BlackElo "2068"]
[Annotator "NA"]
[PlyCount "53"]
[EventDate "2018.07.22"]
[EventType "swiss"]
[EventCountry "AUT"]
[SourceTitle "playchess.com"]
[Source "ChessBase"]
[SourceQuality "1"]
[TimeControl "40/5400+30:1800+30"]

1. e4 {[%emt 0:00:00]} e5 {[%emt 0:00:08]} 2. Nf3 {[%emt 0:00:00]} Nc6 {[%emt 0:00:13]} 3. Bb5 {[%emt 0:00:00]} Nf6 {[%emt 0:00:16]} 4. O-O {[%emt 0:01:37]} Nxe4 {[%emt 0:00:37]} 5. d4 {[%emt 0:00:39]} Nd6 {[%emt 0:00:27]} 6. Bxc6 {[%emt 0:00:21]} dxc6 {[%emt 0:00:06]} 7. dxe5 {[%emt 0:00:14]} Nf5 {[%emt 0:00:25]} 8. Qxd8+ {[%emt 0:00:58]} Kxd8 {[%emt 0:00:01]} 9. Nc3 {[%emt 0:00:27]} Be7 {[%emt 0:02:32]} 10. b3 {[%emt 0:01:24]} Ke8 {[%emt 0:03:22]} 11. Bb2 {[%emt 0:00:25]} Be6 {[%emt 0:04:36]} 12. h3 {[%emt 0:01:46]} h5 {[%emt 0:06:12]} 13. Ne4 {[%emt 0:08:22]} Rd8 {[%emt 0:05:24]} 14. Rad1 {[%emt 0:03:07]} Rg8 {[%emt 0:07:10]} 15. Bc1 {[%emt 0:04:56]} Rxd1 {[%emt 0:09:42]} 16. Rxd1 {[%emt 0:00:25]} f6 {[%emt 0:02:50]} 17. g4 {[%emt 0:05:20]} hxg4 {[%emt 0:00:18]} 18. hxg4 {[%emt 0:00:05]} Nh6 {[%emt 0:04:32]} 19. exf6 {[%emt 0:00:46]} gxf6 {[%emt 0:00:21]} 20. Bxh6 {[%emt 0:00:18]} Bd5 {[%emt 0:01:52]} 21. Ned2 {[%emt 0:08:00]} Rxg4+ {[%emt 0:00:06]} 22. Kf1 {[%emt 0:00:56]} b5 {[%emt 0:01:48]} 23. Ke2 {[%emt 0:01:40]} a5 {[%emt 0:01:04]} 24. Nf1 {[%emt 0:03:01]} a4 {[%emt 0:02:36]} 25. Ne3 {[%emt 0:01:05]} Rg6 {[%emt 0:00:06]} 26. Bf4 {[%emt 0:00:51]} axb3 {[%emt 0:00:04]} 27. axb3 {[%emt 0:00:30]} 1-0

[Event "AUT-ch 2018"]
[Site "Vienna"]
[Date "2018.07.29"]
[Round "9"]
[White "Atzl, Florian"]
[Black "Spiesberger, Gerhard"]
[Result "0-1"]
[ECO "A98"]
[WhiteElo "2117"]
[BlackElo "2117"]
[Annotator "NA"]
[PlyCount "70"]
[EventDate "2018.07.22"]
[EventType "swiss"]
[EventCountry "AUT"]
[SourceTitle "playchess.com"]
[Source "ChessBase"]
[SourceQuality "1"]
[TimeControl "40/5400+30:1800+30"]

1. Nf3 {[%emt 0:00:00]} f5 {[%emt 0:01:54]} 2. g3 {[%emt 0:00:00]} Nf6 {[%emt 0:00:25]} 3. Bg2 {[%emt 0:00:06]} d6 {[%emt 0:00:46]} 4. d4 {[%emt 0:00:10]} e6 {[%emt 0:00:41]} 5. O-O {[%emt 0:00:23]} Be7 {[%emt 0:00:07]} 6. c4 {[%emt 0:00:11]} O-O {[%emt 0:00:31]} 7. Nc3 {[%emt 0:00:22]} Qe8 {[%emt 0:00:22]} 8. Qc2 {[%emt 0:02:41]} Nc6 {[%emt 0:02:06]} 9. d5 {[%emt 0:02:04]} Nb4 {[%emt 0:03:58]} 10. Qd2 {[%emt 0:04:52]} e5 {[%emt 0:02:49]} 11. a3 {[%emt 0:01:30]} Na6 {[%emt 0:00:28]} 12. b4 {[%emt 0:00:19]} Ne4 {[%emt 0:06:08]} 13. Nxe4 {[%emt 0:00:57]} fxe4 {[%emt 0:00:08]} 14. Ng5 {[%emt 0:01:56]} Bxg5 {[%emt 0:02:32]} 15. Qxg5 {[%emt 0:00:05]} Bf5 {[%emt 0:00:42]} 16. Qe3 {[%emt 0:02:27]} Qg6 {[%emt 0:06:03]} 17. Bb2 {[%emt 0:01:46]} Rf6 {[%emt 0:03:27]} 18. h3 {[%emt 0:02:43]} h5 {[%emt 0:08:52]} 19. Kh2 {[%emt 0:03:05]} b6 {[%emt 0:17:01]} 20. Qb3 {[%emt 0:02:59]} Raf8 {[%emt 0:01:16]} 21. Bc1 {[%emt 0:01:07]} Bxh3 {[%emt 0:09:22]} 22. Bxh3 {[%emt 0:00:16]} Rxf2+ {[%emt 0:00:12]} 23. Rxf2 {[%emt 0:00:12]} Rxf2+ {[%emt 0:00:24]} 24. Bg2 {[%emt 0:00:08]} h4 {[%emt 0:02:27]} 25. Ra2 {[%emt 0:02:16]} h3 {[%emt 0:03:34]} 26. Qe3 {[%emt 0:07:34]} Qf5 {[%emt 0:03:07]} 27. Qxf2 {[%emt 0:09:24]} Qxf2 {[%emt 0:02:00]} 28. Kxh3 {[%emt 0:00:02]} Nb8 {[%emt 0:02:36]} 29. Bxe4 {[%emt 0:05:37]} Qf1+ {[%emt 0:01:40]} 30. Kg4 {[%emt 0:00:51]} Qxc1 {[%emt 0:00:27]} 31. Rc2 {[%emt 0:01:49]} Qe3 {[%emt 0:02:13]} 32. Bf5 {[%emt 0:00:32]} Kf7 {[%emt 0:00:27]} 33. c5 {[%emt 0:00:33]} bxc5 {[%emt 0:02:52]} 34. bxc5 {[%emt 0:00:09]} Kf6 {[%emt 0:01:17]} 35. cxd6 {[%emt 0:00:12]} Qg5+ {[%emt 0:00:13]} 0-1

[Event "AUT-ch 2018"]
[Site "Vienna"]
[Date "2018.07.29"]
[Round "9"]
[White "Charaus, Florian"]
[Black "Konecny, Sophie"]
[Result "1-0"]
[ECO "A06"]
[WhiteElo "2115"]
[BlackElo "1889"]
[Annotator "NA"]
[PlyCount "169"]
[EventDate "2018.07.22"]
[EventType "swiss"]
[EventCountry "AUT"]
[SourceTitle "playchess.com"]
[Source "ChessBase"]
[SourceQuality "1"]
[TimeControl "40/5400+30:1800+30"]

1. Nf3 {[%emt 0:00:00]} d5 {[%emt 0:00:08]} 2. d3 {[%emt 0:00:00]} Nf6 {[%emt 0:00:13]} 3. g3 {[%emt 0:00:00]} Bg4 {[%emt 0:00:12]} 4. Bg2 {[%emt 0:00:18]} c6 {[%emt 0:00:12]} 5. Nbd2 {[%emt 0:00:43]} Nbd7 {[%emt 0:00:19]} 6. O-O {[%emt 0:00:28]} e5 {[%emt 0:01:03]} 7. c4 {[%emt 0:02:07]} Bd6 {[%emt 0:02:03]} 8. b3 {[%emt 0:04:37]} O-O {[%emt 0:03:23]} 9. Bb2 {[%emt 0:00:37]} Re8 {[%emt 0:01:51]} 10. cxd5 {[%emt 0:02:45]} cxd5 {[%emt 0:01:10]} 11. h3 {[%emt 0:00:08]} Bh5 {[%emt 0:00:23]} 12. Rc1 {[%emt 0:02:25]} Rc8 {[%emt 0:04:11]} 13. e4 {[%emt 0:02:15]} Nc5 {[%emt 0:05:06]} 14. Qe2 {[%emt 0:02:54]} Bb8 {[%emt 0:08:05]} 15. Rfd1 {[%emt 0:08:07]} dxe4 {[%emt 0:02:56]} 16. Nxe4 {[%emt 0:00:19]} Nfxe4 {[%emt 0:01:38]} 17. dxe4 {[%emt 0:00:24]} Qb6 {[%emt 0:04:12]} 18. Qc4 {[%emt 0:16:59]} Rc6 {[%emt 0:03:36]} 19. Rd5 {[%emt 0:13:56]} Rec8 {[%emt 0:05:08]} 20. Rcd1 {[%emt 0:11:55]} Bg6 {[%emt 0:02:40]} 21. Qb4 {[%emt 0:06:26]} f6 {[%emt 0:06:24]} 22. Ba3 {[%emt 0:05:42]} Qxb4 {[%emt 0:09:40]} 23. Bxb4 {[%emt 0:00:51]} b6 24. Nh4 {[%emt 0:04:07]} Bc7 {[%emt 0:07:33]} 25. Nf5 {[%emt 0:00:26]} Bxf5 {[%emt 0:03:56]} 26. exf5 Na6 {[%emt 0:00:30]} 27. Ba3 {[%emt 0:03:17]} Rc2 {[%emt 0:02:45]} 28. Rd7 {[%emt 0:01:58]} Rb8 {[%emt 0:02:27]} 29. Bf1 {[%emt 0:02:45]} b5 {[%emt 0:03:03]} 30. R1d2 {[%emt 0:03:40]} Rxd2 {[%emt 0:01:29]} 31. Rxd2 {[%emt 0:00:05]} b4 {[%emt 0:01:39]} 32. Bc1 {[%emt 0:02:01]} Nc5 {[%emt 0:01:01]} 33. Rd5 {[%emt 0:00:51]} Bb6 {[%emt 0:00:59]} 34. Be3 {[%emt 0:00:33]} Rc8 {[%emt 0:00:51]} 35. Bc4 {[%emt 0:01:12]} Kf8 {[%emt 0:02:27]} 36. Kg2 {[%emt 0:01:22]} Ke7 {[%emt 0:01:17]} 37. Bb5 {[%emt 0:00:23]} Rc7 {[%emt 0:00:54]} 38. h4 {[%emt 0:00:21]} Kf7 {[%emt 0:03:03]} 39. Bc4 {[%emt 0:00:05]} Ke7 {[%emt 0:00:30]} 40. Bb5 {[%emt 0:00:29]} Kf7 {[%emt 0:30:11]} 41. Rd8 {[%emt 0:31:48]} Ke7 {[%emt 0:02:47]} 42. Rh8 {[%emt 0:00:00]} h6 {[%emt 0:00:00]} 43. Kf3 {[%emt 0:00:00]} Kf7 {[%emt 0:00:00]} 44. Rd8 {[%emt 0:00:00]} Ke7 {[%emt 0:00:00]} 45. Rg8 {[%emt 0:00:00]} Kd6 {[%emt 0:00:00]} 46. Kg4 {[%emt 0:00:00]} Rb7 {[%emt 0:00:00]} 47. Bc4 {[%emt 0:00:00]} Re7 {[%emt 0:00:00]} 48. f3 {[%emt 0:00:00]} e4 {[%emt 0:00:00]} 49. fxe4 {[%emt 0:00:00]} Nxe4 {[%emt 0:00:00]} 50. Bf4+ {[%emt 0:00:00]} Kc5 {[%emt 0:00:00]} 51. Rc8+ {[%emt 0:00:00]} Kd4 {[%emt 0:00:00]} 52. Rc6 {[%emt 0:00:00]} Rd7 {[%emt 0:00:00]} 53. Be6 {[%emt 0:00:00]} Re7 {[%emt 0:00:00]} 54. Rc4+ {[%emt 0:01:18]} Kd3 {[%emt 0:00:00]} 55. Rxb4 {[%emt 0:00:36]} Nc3 {[%emt 0:00:00]} 56. a4 {[%emt 0:01:43]} Ne2 {[%emt 0:00:00]} 57. Bd6 {[%emt 0:01:25]} Re8 {[%emt 0:00:00]} 58. Rc4 {[%emt 0:01:28]} Nd4 {[%emt 0:00:00]} 59. Rc8 {[%emt 0:01:18]} Rxc8 {[%emt 0:00:00]} 60. Bxc8 {[%emt 0:00:05]} Nxb3 {[%emt 0:00:00]} 61. Bf8 {[%emt 0:00:04]} Nc5 {[%emt 0:00:13]} 62. a5 {[%emt 0:00:14]} Bxa5 {[%emt 0:00:48]} 63. Bxc5 {[%emt 0:00:13]} Be1 {[%emt 0:01:11]} 64. Ba6+ {[%emt 0:00:26]} Ke4 {[%emt 0:00:13]} 65. Bf8 {[%emt 0:00:17]} h5+ {[%emt 0:00:51]} 66. Kh3 {[%emt 0:01:26]} Kxf5 {[%emt 0:00:31]} 67. Bxg7 {[%emt 0:00:17]} Bc3 {[%emt 0:01:02]} 68. Bh6 {[%emt 0:00:24]} Bd4 {[%emt 0:00:57]} 69. Bf4 {[%emt 0:00:08]} Kg6 {[%emt 0:00:32]} 70. Kg2 {[%emt 0:00:09]} Kf5 {[%emt 0:01:42]} 71. Kf3 {[%emt 0:00:06]} Kg6 {[%emt 0:03:03]} 72. Bd3+ {[%emt 0:00:15]} Kg7 {[%emt 0:01:09]} 73. Bc7 {[%emt 0:00:17]} Bc5 {[%emt 0:01:27]} 74. Kf4 {[%emt 0:00:26]} Bf2 {[%emt 0:00:31]} 75. Kf5 {[%emt 0:00:06]} Be3 {[%emt 0:00:43]} 76. Be2 {[%emt 0:00:25]} Bf2 {[%emt 0:00:51]} 77. Bxh5 {[%emt 0:00:15]} Be1 {[%emt 0:00:19]} 78. Be8 {[%emt 0:01:24]} Bf2 {[%emt 0:00:41]} 79. Bf4 {[%emt 0:01:31]} Bd4 {[%emt 0:01:16]} 80. h5 {[%emt 0:00:55]} Bc3 {[%emt 0:00:47]} 81. Bd6 {[%emt 0:01:43]} Be1 {[%emt 0:01:59]} 82. g4 {[%emt 0:00:11]} Bd2 {[%emt 0:00:19]} 83. Be7 {[%emt 0:00:29]} Bg5 {[%emt 0:01:27]} 84. Bxf6+ {[%emt 0:00:33]} Bxf6 {[%emt 0:00:12]} 85. h6+ {[%emt 0:00:04]} 1-0

[Event "AUT-ch 2018"]
[Site "Vienna"]
[Date "2018.07.29"]
[Round "9"]
[White "Wagner, Leopold Franziskus"]
[Black "Schmidlechner, Alexander"]
[Result "1/2-1/2"]
[ECO "B06"]
[WhiteElo "2108"]
[BlackElo "2226"]
[Annotator "NA"]
[PlyCount "107"]
[EventDate "2018.07.22"]
[EventType "swiss"]
[EventCountry "AUT"]
[SourceTitle "playchess.com"]
[Source "ChessBase"]
[SourceQuality "1"]
[TimeControl "40/5400+30:1800+30"]

1. e4 {[%emt 0:00:00]} g6 {[%emt 0:00:14]} 2. Nf3 {[%emt 0:00:32]} c6 {[%emt 0:00:09]} 3. d4 {[%emt 0:00:27]} Bg7 {[%emt 0:00:09]} 4. Nbd2 {[%emt 0:00:46]} d5 {[%emt 0:00:25]} 5. e5 {[%emt 0:00:30]} Nh6 {[%emt 0:00:26]} 6. Nb3 {[%emt 0:06:47]} O-O {[%emt 0:01:32]} 7. h4 {[%emt 0:04:41]} Bg4 {[%emt 0:01:34]} 8. Bxh6 {[%emt 0:00:58]} Bxh6 {[%emt 0:00:37]} 9. Be2 {[%emt 0:01:04]} Bg7 {[%emt 0:01:44]} 10. Ng5 {[%emt 0:02:05]} Bxe2 {[%emt 0:02:05]} 11. Qxe2 {[%emt 0:00:20]} e6 {[%emt 0:00:55]} 12. f4 {[%emt 0:05:25]} h6 {[%emt 0:03:02]} 13. Nf3 {[%emt 0:00:16]} Nd7 {[%emt 0:00:46]} 14. h5 {[%emt 0:01:00]} c5 {[%emt 0:03:33]} 15. dxc5 {[%emt 0:06:01]} Nxc5 {[%emt 0:01:37]} 16. Nxc5 {[%emt 0:01:38]} Qa5+ {[%emt 0:00:12]} 17. c3 {[%emt 0:00:16]} Qxc5 {[%emt 0:00:12]} 18. Nd4 Qe7 {[%emt 0:09:03]} 19. hxg6 {[%emt 0:06:03]} fxg6 {[%emt 0:03:04]} 20. Qg4 {[%emt 0:00:50]} Rae8 {[%emt 0:00:42]} 21. g3 {[%emt 0:02:35]} Qf7 {[%emt 0:08:38]} 22. Nb5 Bxe5 {[%emt 0:06:18]} 23. fxe5 {[%emt 0:02:08]} Qf2+ {[%emt 0:00:09]} 24. Kd1 {[%emt 0:00:06]} Kh7 {[%emt 0:01:42]} 25. Qe2 {[%emt 0:12:11]} Qxg3 {[%emt 0:01:13]} 26. Rf1 {[%emt 0:01:20]} Rxf1+ {[%emt 0:09:34]} 27. Qxf1 {[%emt 0:01:12]} Kg8 {[%emt 0:00:07]} 28. Kc2 {[%emt 0:01:06]} Qh2+ {[%emt 0:13:00]} 29. Kb3 {[%emt 0:00:35]} Qxe5 {[%emt 0:00:11]} 30. Re1 {[%emt 0:01:52]} Qg7 {[%emt 0:01:53]} 31. Nxa7 {[%emt 0:03:18]} g5 {[%emt 0:03:21]} 32. Nb5 {[%emt 0:04:08]} Qg6 {[%emt 0:00:58]} 33. Qg2 {[%emt 0:04:23]} Kg7 {[%emt 0:03:58]} 34. Nc7 {[%emt 0:00:51]} Re7 {[%emt 0:01:37]} 35. Nxd5 {[%emt 0:01:10]} Rf7 {[%emt 0:00:23]} 36. Nb4 {[%emt 0:01:00]} g4 {[%emt 0:00:30]} 37. Re4 {[%emt 0:00:32]} h5 {[%emt 0:00:21]} 38. Qe2 {[%emt 0:03:16]} Rf6 {[%emt 0:03:15]} 39. Nd3 {[%emt 0:15:36]} g3 {[%emt 0:02:56]} 40. Qg2 {[%emt 0:01:34]} Qg5 {[%emt 0:41:10]} 41. Re5 {[%emt 0:31:42]} Qg6 {[%emt 0:01:11]} 42. Re3 {[%emt 0:02:58]} h4 {[%emt 0:03:29]} 43. Ne5 {[%emt 0:00:00]} Qg5 {[%emt 0:00:00]} 44. Re2 {[%emt 0:00:00]} Kg8 {[%emt 0:00:00]} 45. a4 {[%emt 0:00:00]} Rf5 {[%emt 0:00:00]} 46. Qxb7 {[%emt 0:00:00]} h3 {[%emt 0:00:00]} 47. Nf3 {[%emt 0:04:51]} Rxf3 {[%emt 0:00:15]} 48. Qxf3 {[%emt 0:01:30]} Qd5+ {[%emt 0:00:08]} 49. Qxd5 {[%emt 0:00:56]} exd5 {[%emt 0:00:03]} 50. Re3 {[%emt 0:01:28]} g2 {[%emt 0:00:08]} 51. Rxh3 {[%emt 0:00:38]} g1=Q {[%emt 0:00:10]} 52. Rd3 {[%emt 0:00:35]} Qc5 {[%emt 0:00:46]} 53. Rd4 {[%emt 0:00:03]} Kf7 {[%emt 0:00:22]} 54. Rb4 {[%emt 0:00:14]} 1/2-1/2